fUSD/lending_fUSD_20260217
["ID","MTS","AMOUNT","RATE_DAILY","PERIOD"]
[405766374,1771287047756,-152.0,0.00032594,4]
[405766375,1771287047765,-502.0,0.00032799,16]
[405766376,1771287047775,-4844.43025104,0.000328,2]
[405766377,1771287047784,-577.15384615,0.00032849,30]
[405766378,1771287047793,-289.41632207,0.00032849,30]
[405766379,1771287047802,-214.0,0.0003286,30]
[405766380,1771287047812,-1724.82514086,0.0003287,4]
[405766381,1771287047822,-4169.0,0.00032877,30]
[405766382,1771287047831,-500.0,0.00032877,120]
[405766383,1771287047841,-833.8,0.00032877,2]
[405766384,1771287047850,-151.0,0.00032877,31]
[405766385,1771287047859,-151.0,0.00032877,31]
[405766386,1771287047869,-151.0,0.00032877,31]
[405766387,1771287047878,-658.0,0.00032877,2]
[405766388,1771287047888,-151.0,0.00032897,14]
[405766389,1771287047898,-1594.4,0.000329,2]
[405766390,1771287047907,-393.64,0.000329,14]
[405766391,1771287047917,-658.0,0.00032932,2]
[405766392,1771287047926,-658.0,0.00032987,2]
[405766393,1771287047936,-500.0,0.00032994,120]
[405766394,1771287047945,-1208.0,0.00032999,2]
[405766395,1771287047960,-51448.66206298,0.00033,2]
[405766396,1771287047971,-26455.9935229,0.00033,2]
[405766397,1771287047981,-399.0,0.00033,14]
[405766398,1771287047991,-5971.0,0.00033,2]
[405766399,1771287048002,-2452.0,0.00033,2]
[405766400,1771287048012,-2545.85572463,0.00033014,30]
[405766401,1771287048023,-44093.0,0.00033021,30]
[405766402,1771287048033,-658.0,0.00033041,2]
[405766403,1771287048043,-150.0,0.00033043,2]
[405766404,1771287048053,-658.0,0.00033096,2]
[405766405,1771287048063,-2545.85572463,0.00033151,30]
[405766406,1771287048073,-399.0,0.00033151,30]
[405766407,1771287048082,-658.0,0.00033151,2]
[405766408,1771287048092,-658.0,0.00033206,2]
[405766409,1771287048101,-658.0,0.00033261,2]
[405766410,1771287048111,-2545.85572463,0.00033288,30]
[405766411,1771287048120,-170.45,0.000333,14]
[405766412,1771287048130,-366.78,0.00033305,30]
[405766413,1771287048140,-658.0,0.00033315,2]
[405766414,1771287048150,-360.38217355,0.00033333,30]
[405766415,1771287048159,-658.0,0.0003337,2]
[405766416,1771287048169,-2545.85572463,0.00033425,30]
[405766417,1771287048178,-658.0,0.00033425,2]
[405766418,1771287048188,-1568.88650108,0.0003345,5]
[405766419,1771287048198,-500.5,0.00033473,5]
[405766420,1771287048208,-658.0,0.0003348,2]
[405766421,1771287048218,-397.9,0.000335,14]
[405766422,1771287048230,-1016.02,0.000335,30]
[405766423,1771287048239,-1215.06013402,0.000335,2]
[405766424,1771287048249,-502.0,0.00033503,16]
[405766425,1771287048258,-2545.85572463,0.00033534,30]
[405766426,1771287048269,-658.0,0.00033535,2]
[405766427,1771287048278,-172.9227876,0.00033546,30]
[405766428,1771287048288,-658.0,0.00033589,2]
[405766429,1771287048298,-658.0,0.00033644,2]
[405766430,1771287048308,-2545.85572463,0.00033671,30]
[405766431,1771287048318,-7528.44,0.00033699,2]
[405766432,1771287048327,-658.0,0.00033699,2]
[405766433,1771287048338,-393.64,0.000337,14]
[405766434,1771287048349,-658.0,0.00033754,2]
[405766435,1771287048361,-2545.85572463,0.00033808,30]
[405766436,1771287048370,-658.0,0.00033809,2]
[405766437,1771287048379,-658.0,0.00033863,2]
[405766438,1771287048388,-658.0,0.00033918,2]
[405766439,1771287048397,-2545.85572463,0.00033945,30]
[405766440,1771287048407,-658.0,0.00033973,2]
[405766441,1771287048416,-300.0,0.00033999,10]
[405766442,1771287048425,-151.0,0.00034,31]
[405766443,1771287048435,-151.0,0.00034,31]
[405766444,1771287048446,-151.0,0.00034,31]
[405766445,1771287048456,-151.0,0.00034,31]
[405766446,1771287048465,-497.593868,0.00034,31]
[405766447,1771287048475,-497.593868,0.00034,31]
[405766448,1771287048484,-497.593868,0.00034,31]
[405766449,1771287048495,-497.593868,0.00034,31]
[405766450,1771287048505,-151.0,0.00034,31]
[405766451,1771287048515,-456.35311,0.00034,31]
[405766452,1771287048524,-456.35311,0.00034,31]
[405766453,1771287048535,-456.35311,0.00034,31]
[405766454,1771287048548,-456.35311,0.00034,31]
[405766455,1771287048559,-430098.71,0.00034,2]
[405766456,1771287048569,-658.0,0.00034028,2]
[405766457,1771287048579,-300.0,0.00034081,10]
[405766458,1771287048589,-2545.85572463,0.00034082,30]
[405766459,1771287048599,-658.0,0.00034082,2]
[405766460,1771287048608,-44093.0,0.00034109,30]
[405766461,1771287048617,-4273.48038215,0.00034136,2]
[405766462,1771287048627,-668.39997133,0.00034137,2]
[405766463,1771287048638,-180.0,0.0003415,12]
[405766464,1771287048648,-502.0,0.00034208,17]
[405766465,1771287048659,-2545.85572463,0.00034219,30]
[405766466,1771287048669,-1647.22992752,0.00034312,5]
[405766467,1771287048678,-152.0,0.00034332,5]
[405766468,1771287048688,-2545.85572463,0.00034356,30]
[405766469,1771287048698,-2545.85572463,0.00034466,30]
[405766470,1771287048708,-327.87200731,0.000345,30]
[405766471,1771287048717,-399.0,0.00034521,30]
[405766472,1771287048727,-150.0,0.00034696,2]
[405766473,1771287048737,-1016.02,0.000347,30]
[405766474,1771287048747,-1500.0,0.00034795,2]
[405766475,1771287048757,-1000.0,0.00034816,7]
[405766476,1771287048767,-500.0,0.00034833,120]
[405766477,1771287048776,-214.0,0.0003488,30]
[405766478,1771287048786,-593.75203495,0.000349,2]
[405766479,1771287048796,-502.0,0.00034912,18]
[405766480,1771287048806,-1000.0,0.00035,120]
[405766481,1771287048816,-150.0,0.00035,2]
[405766482,1771287048826,-151.0,0.00035,31]
[405766483,1771287048836,-151.0,0.00035,31]
[405766484,1771287048846,-151.0,0.00035,31]
[405766485,1771287048856,-872.032144,0.00035,31]
[405766486,1771287048866,-872.032144,0.00035,31]
[405766487,1771287048876,-872.032144,0.00035,31]
[405766488,1771287048886,-872.032144,0.00035,31]
[405766489,1771287048897,-151.0,0.00035,31]
[405766490,1771287048907,-151.0,0.00035,31]
[405766491,1771287048917,-151.0,0.00035,31]
[405766492,1771287048928,-489.54628,0.00035,28]
[405766493,1771287048937,-489.54628,0.00035,28]
[405766494,1771287048947,-151.0,0.00035,31]
[405766495,1771287048959,-489.54628,0.00035,28]
[405766496,1771287048969,-284.619282,0.00035,31]
[405766497,1771287048979,-489.54628,0.00035,28]
[405766498,1771287048989,-284.619282,0.00035,31]
[405766499,1771287048999,-284.619282,0.00035,31]
[405766500,1771287049010,-284.619282,0.00035,31]
[405766501,1771287049020,-167.064397,0.00035,7]
[405766502,1771287049030,-167.064397,0.00035,7]
[405766503,1771287049041,-167.064397,0.00035,7]
[405766504,1771287049051,-167.064397,0.00035,7]
[405766505,1771287049061,-1000.0,0.0003509,7]
[405766506,1771287049072,-1682.04922816,0.00035173,5]
[405766507,1771287049082,-44093.0,0.00035198,30]
[405766508,1771287049092,-393.64,0.000353,14]
[405766509,1771287049103,-1000.0,0.00035364,7]
[405766510,1771287049114,-168.35,0.00035479,120]
[405766511,1771287049124,-1338.0,0.0003551,2]
[405766512,1771287049134,-3490.0,0.0003551,2]
[405766513,1771287049144,-617.0,0.0003551,2]
[405766514,1771287049154,-1275.0,0.0003551,2]
[405766515,1771287049163,-360.38217355,0.00035556,30]
[405766516,1771287049173,-1346.69230769,0.00035589,120]
[405766517,1771287049183,-675.3047515,0.00035589,120]
[405766518,1771287049194,-275.26153847,0.00035589,120]
[405766519,1771287049205,-235.93846154,0.00035589,120]
[405766520,1771287049215,-288.42617774,0.000356,120]
[405766521,1771287049225,-179.48096296,0.000356,120]
[405766522,1771287049235,-266.64032004,0.000356,120]
[405766523,1771287049246,-221.91961703,0.000356,120]
[405766524,1771287049256,-161.06307726,0.000356,120]
[405766525,1771287049267,-519.95337517,0.000356,120]
[405766526,1771287049276,-194.32951428,0.000356,120]
[405766527,1771287049287,-183.61654118,0.000356,120]
[405766528,1771287049297,-286.38519009,0.000356,120]
[405766529,1771287049307,-79636.06246017,0.0003561,2]
[405766530,1771287049317,-4444.77803372,0.0003561,2]
[405766531,1771287049329,-5000.0,0.0003561,2]
[405766532,1771287049340,-500.0,0.00035616,120]
[405766533,1771287049351,-1987.0,0.00035616,120]
[405766534,1771287049361,-833.8,0.00035616,2]
[405766535,1771287049372,-1000.0,0.00035616,2]
[405766536,1771287049383,-502.0,0.00035617,18]
[405766537,1771287049394,-1000.0,0.00035638,14]
[405766538,1771287049406,-397.9,0.000358,14]
[405766539,1771287049417,-235.93238,0.00035888,30]
[405766540,1771287049427,-1000.0,0.00035912,14]
[405766541,1771287049438,-1208.0,0.00035999,2]
[405766542,1771287049447,-10559.97832023,0.00036,31]
[405766543,1771287049458,-558.7,0.00036,30]
[405766544,1771287049468,-1973.26708753,0.00036,2]
[405766545,1771287049479,-147218.62375212,0.00036,2]
[405766546,1771287051620,-663.7042298,0.00011099,2]
[405766547,1771287051632,-2337.51042041,0.00011099,2]
[405766548,1771287051643,-264.208,0.00011099,2]
[405766549,1771287051760,-1535.04602866,0.00011099,2]
[405766550,1771287051771,-4791.0,0.00011099,2]
[405766551,1771287051993,-644.1737403,0.00011099,2]
[405766554,1771287285990,988.60073934,0.000108,3]
[405766555,1771287286104,1491.76118295,0.000108,3]
[405766556,1771287286145,1365.97107205,0.000108,3]
[405766557,1771287286207,1617.55129385,0.000108,3]
[405766559,1771287824094,3749.80767635,0.000107,3]
[405766560,1771287824147,5369.72113071,0.000107,3]
[405766561,1771287824202,6449.66343361,0.000107,3]
[405766562,1771287824253,5909.69228216,0.000107,3]
[405766565,1771287958549,5000.01,8e-05,2]
[405766573,1771288039697,500.0,0.000153,30]
[405766574,1771288039959,500.0,0.000153,30]
[405766575,1771288040169,500.0,0.000153,30]
[405766576,1771288040412,500.0,0.000153,30]
[405766577,1771288040701,500.0,0.000153,30]
[405766578,1771288041144,500.0,0.000153,30]
[405766579,1771288041292,500.0,0.000153,30]
[405766581,1771288044509,847.29194258,0.000153,30]
[405766582,1771288048130,694.14679902,0.000153,30]
[405766583,1771288131736,222.0,0.00020299,120]
[405766584,1771288137779,333.0,0.00020299,120]
[405766585,1771288139214,1095.48626761,0.000106,3]
[405766586,1771288139361,1520.95508804,0.000106,3]
[405766587,1771288139415,1662.77802818,0.000106,3]
[405766588,1771288139469,1804.60096832,0.000106,3]
[405766589,1771288147299,444.0,0.00020299,120]
[405766590,1771288154437,555.0,0.00020299,120]
[405766594,1771288231417,-400.0,9.751e-05,2]
[405766599,1771288231629,-1279.256994,9.751e-05,2]
[405766601,1771288231639,-205.0,9.8e-05,2]
[405766604,1771288231648,-250.0,9.875e-05,2]
[405766606,1771288231658,-250.0,9.97e-05,2]
[405766607,1771288231668,-266.0,9.999e-05,2]
[405766610,1771288231678,-1200.0,9.999e-05,2]
[405766612,1771288231687,-1655.25,0.0001,2]
[405766614,1771288231696,-242.27,0.0001,2]
[405766615,1771288231706,-1936.82885573,0.0001,2]
[405766618,1771288231715,-776.88702523,0.0001,2]
[405766619,1771288231725,-300.0,0.0001005,2]
[405766622,1771288231734,-9149.68,0.00010051,2]
[405766624,1771288231743,-222.0,0.00010247,2]
[405766625,1771288231753,-444.0,0.00010247,2]
[405766626,1771288231762,-435.5764051,0.00010247,2]
[405766627,1771288231771,-1852.42,0.00010247,2]
[405766628,1771288231785,-150.0,0.00010295,2]
[405766629,1771288231794,-24375.0239664,0.00010296,2]
[405766630,1771288231804,-666.0,0.00010296,2]
[405766631,1771288231813,-333.0,0.00010296,2]
[405766632,1771288231823,-2619.05879386,0.000104,2]
[405766633,1771288231832,-869.0533323,0.00010698,2]
[405766634,1771288231842,-3473.63754395,0.00010698,2]
[405766635,1771288231852,-266.15807729,0.00010699,2]
[405766636,1771288231863,-250.0,0.0001078,2]
[405766637,1771288231873,-254.27341698,0.00010788,2]
[405766638,1771288231883,-148594.55241644,0.00010798,2]
[405766639,1771288231896,-25059.75570135,0.00010798,2]
[405766646,1771288237564,-1120.43290127,0.00010698,2]
[405766647,1771288237576,-9197.78469034,0.00010698,2]
[405766648,1771288237588,-3326345.69188221,0.00010798,2]
[405766649,1771288237600,-2500.0,0.00010798,2]
[405766650,1771288237612,-6736.7294,0.00010798,2]
[405766651,1771288237622,-508.93031568,0.00010799,2]
[405766652,1771288237634,-1030.76604432,0.000108,2]
[405766653,1771288237646,-2225.58,0.00010821,2]
[405766654,1771288237658,-150.0,0.00010871,2]
[405766655,1771288237668,-150.0,0.00010871,2]
[405766656,1771288237678,-254.27341698,0.00010889,2]
[405766657,1771288237688,-1000.0,0.00010896,2]
[405766658,1771288237698,-171.6,0.00010897,2]
[405766659,1771288237708,-315.23906414,0.00010897,2]
[405766660,1771288237720,-500.0,0.00010897,2]
[405766661,1771288237730,-397.54453345,0.00010897,2]
[405766662,1771288237741,-285.36536845,0.00010897,2]
[405766663,1771288237751,-500.0,0.00010897,2]
[405766664,1771288237760,-243.90571355,0.00010897,2]
[405766665,1771288237770,-500.0,0.00010897,2]
[405766666,1771288237780,-500.0,0.00010897,2]
[405766667,1771288237790,-628.28117342,0.00010897,2]
[405766668,1771288237799,-4128.9149,0.00010899,2]
[405766669,1771288237809,-80036.0974,0.00010899,2]
[405766670,1771288237819,-334.97396226,0.000109,2]
[405766671,1771288237828,-9999.99,0.000109,2]
[405766672,1771288237838,-299.99,0.000109,2]
[405766673,1771288237847,-2670.92523887,0.000109,2]
[405766674,1771288237858,-150.0,0.00010926,2]
[405766675,1771288237868,-500.0,0.00010942,2]
[405766676,1771288237879,-999.99,0.00010942,2]
[405766677,1771288237891,-150.99,0.00010942,2]
[405766678,1771288237901,-10705.78,0.00010954,2]
[405766679,1771288237910,-4502.27,0.00010954,2]
[405766680,1771288237919,-150.0,0.00010959,2]
[405766681,1771288237929,-500.0,0.00010973,2]
[405766682,1771288237939,-500.0,0.00010973,2]
[405766683,1771288237948,-500.0,0.00010973,2]
[405766684,1771288237958,-500.0,0.00010973,2]
[405766685,1771288237967,-500.0,0.00010973,2]
[405766686,1771288237976,-500.0,0.00010973,2]
[405766687,1771288237986,-501.83608545,0.00010973,2]
[405766688,1771288237996,-200.0,0.00010981,2]
[405766689,1771288238006,-151.0,0.00010992,2]
[405766690,1771288238016,-151.0,0.00010992,2]
[405766691,1771288238025,-151.0,0.00010992,2]
[405766692,1771288238035,-151.0,0.00010992,2]
[405766693,1771288238045,-151.0,0.00010992,2]
[405766694,1771288238055,-151.0,0.00010992,2]
[405766695,1771288238065,-151.0,0.00010992,2]
[405766696,1771288238075,-151.0,0.00010992,2]
[405766697,1771288238085,-151.0,0.00010992,2]
[405766698,1771288238095,-151.0,0.00010992,2]
[405766699,1771288238104,-151.0,0.00010992,2]
[405766700,1771288238114,-151.0,0.00010992,2]
[405766701,1771288238124,-151.0,0.00010992,2]
[405766702,1771288238134,-151.0,0.00010992,2]
[405766703,1771288238144,-151.0,0.00010992,2]
[405766704,1771288238153,-151.0,0.00010992,2]
[405766705,1771288238164,-151.0,0.00010992,2]
[405766706,1771288238173,-151.0,0.00010992,2]
[405766707,1771288238183,-151.0,0.00010992,2]
[405766708,1771288238192,-151.0,0.00010992,2]
[405766709,1771288238201,-500.0,0.00010992,2]
[405766710,1771288238211,-5907.281,0.00010998,2]
[405766711,1771288238220,-471.173,0.00010998,2]
[405766712,1771288238230,-1680.0,0.00010999,2]
[405766713,1771288238240,-6034.14269282,0.00011,2]
[405766714,1771288238249,-420.0,0.00011055,2]
[405766715,1771288238259,-1543.59,0.00011074,2]
[405766716,1771288238269,-22866.7338853,0.00011099,2]
[405766717,1771288238282,-171.6,0.00011171,2]
[405766718,1771288238292,-500.0,0.00011266,2]
[405766719,1771288238302,-4887.97,0.00011301,2]
[405766720,1771288238312,-255.0,0.00011314,2]
[405766721,1771288238323,-171.61,0.00011445,2]
[405766722,1771288238333,-22866.73388525,0.00011498,2]
[405766723,1771288238343,-838.24624755,0.000115,2]
[405766724,1771288238352,-500.0,0.00011521,2]
[405766725,1771288238364,-1000.0,0.00011521,2]
[405766726,1771288238373,-1000.0,0.00011521,2]
[405766727,1771288238383,-1000.0,0.00011521,2]
[405766728,1771288238392,-500.0,0.00011521,2]
[405766729,1771288238402,-500.0,0.0001154,2]
[405766730,1771288238412,-2670.92523884,0.00011727,2]
[405766731,1771288238422,-500.0,0.00011814,2]
[405766732,1771288238433,-508.93031567,0.00011983,2]
[405766733,1771288238443,-1500.0,0.00012068,2]
[405766734,1771288238453,-1500.0,0.00012068,2]
[405766735,1771288238463,-1500.0,0.00012068,2]
[405766736,1771288238473,-500.0,0.00012088,2]
[405766737,1771288238482,-2351.0,0.00012099,2]
[405766738,1771288238492,-587.0,0.00012159,2]
[405766739,1771288238501,-1600.0,0.00012211,2]
[405766740,1771288238511,-22866.73388525,0.00012298,2]
[405766741,1771288238521,-433.0,0.00012436,2]
[405766742,1771288238531,-1786.3918722,0.00012616,2]
[405766743,1771288238541,-2000.0,0.00012616,2]
[405766744,1771288238550,-367.87853935,0.00012616,2]
[405766745,1771288238560,-2670.92523884,0.00012756,2]
[405766746,1771288238569,-250.0,0.00012884,2]
[405766747,1771288238579,-70181.97252511,0.000129,2]
[405766748,1771288238589,-500.0,0.00013,2]
[405766749,1771288238598,-500.0,0.00013,2]
[405766750,1771288238607,-500.0,0.00013,2]
[405766751,1771288238617,-500.0,0.00013,2]
[405766752,1771288238626,-543.18341436,0.00013,2]
[405766753,1771288238635,-857.97782352,0.00013,2]
[405766754,1771288238644,-2500.0,0.00013164,2]
[405766755,1771288238653,-508.93031567,0.00013166,2]
[405766756,1771288238663,-3292.0,0.00013309,2]
[405766757,1771288238672,-823.0,0.00013375,2]
[405766758,1771288238682,-3240.0,0.00013425,2]
[405766759,1771288238691,-200.0,0.0001344,2]
[405766760,1771288238700,-736.0,0.00013661,2]
[405766761,1771288238710,-500.0,0.00013698,2]
[405766762,1771288238719,-500.0,0.00013698,2]
[405766763,1771288238729,-500.0,0.00013698,2]
[405766764,1771288238738,-500.0,0.00013698,2]
[405766765,1771288238748,-500.0,0.00013698,2]
[405766766,1771288238757,-500.0,0.00013698,2]
[405766767,1771288238766,-500.0,0.00013698,2]
[405766768,1771288238775,-500.0,0.00013698,2]
[405766769,1771288238784,-500.0,0.00013698,2]
[405766770,1771288238794,-500.0,0.00013698,2]
[405766771,1771288238803,-500.0,0.00013698,2]
[405766772,1771288238813,-500.0,0.00013698,2]
[405766773,1771288238822,-500.0,0.00013698,2]
[405766774,1771288238832,-500.0,0.00013698,2]
[405766775,1771288238841,-500.0,0.00013698,2]
[405766776,1771288238851,-500.0,0.00013698,2]
[405766777,1771288238862,-500.0,0.00013698,2]
[405766778,1771288238873,-500.0,0.00013698,2]
[405766779,1771288238883,-500.0,0.00013698,2]
[405766780,1771288238892,-500.0,0.00013698,2]
[405766781,1771288238902,-500.0,0.00013698,2]
[405766782,1771288238912,-500.0,0.00013698,2]
[405766783,1771288238921,-500.0,0.00013698,2]
[405766784,1771288238930,-500.0,0.00013698,2]
[405766785,1771288238940,-500.0,0.00013698,2]
[405766786,1771288238950,-545.5539696,0.00013698,2]
[405766787,1771288238960,-678.14,0.00013698,2]
[405766788,1771288238969,-678.14,0.00013698,2]
[405766789,1771288238979,-678.14,0.00013698,2]
[405766790,1771288238988,-678.14,0.00013698,2]
[405766791,1771288238998,-678.14,0.00013698,2]
[405766792,1771288239008,-678.14,0.00013698,2]
[405766793,1771288239018,-678.14,0.00013698,2]
[405766794,1771288239027,-678.14,0.00013698,2]
[405766795,1771288239036,-678.14,0.00013698,2]
[405766796,1771288239046,-678.14,0.00013698,2]
[405766797,1771288239055,-678.14,0.00013698,2]
[405766798,1771288239066,-678.14,0.00013698,2]
[405766799,1771288239076,-678.14,0.00013698,2]
[405766800,1771288239085,-678.14,0.00013698,2]
[405766801,1771288239094,-678.14,0.00013698,2]
[405766802,1771288239103,-915.0,0.00013698,2]
[405766803,1771288239113,-500.0,0.00013698,2]
[405766804,1771288239123,-915.0,0.00013698,2]
[405766805,1771288239133,-500.0,0.00013698,2]
[405766806,1771288239142,-915.0,0.00013698,2]
[405766807,1771288239151,-500.0,0.00013698,2]
[405766808,1771288239161,-915.0,0.00013698,2]
[405766809,1771288239172,-500.0,0.00013698,2]
[405766810,1771288239182,-915.0,0.00013698,2]
[405766811,1771288239192,-500.0,0.00013698,2]
[405766812,1771288239202,-915.0,0.00013698,2]
[405766813,1771288239211,-915.0,0.00013698,2]
[405766814,1771288239221,-915.0,0.00013698,2]
[405766815,1771288239230,-915.0,0.00013698,2]
[405766816,1771288239240,-915.0,0.00013698,2]
[405766817,1771288239251,-915.0,0.00013698,2]
[405766818,1771288239261,-915.0,0.00013698,2]
[405766819,1771288239271,-915.0,0.00013698,2]
[405766820,1771288239283,-915.0,0.00013698,2]
[405766821,1771288239292,-915.0,0.00013698,2]
[405766822,1771288239302,-915.0,0.00013698,2]
[405766823,1771288239313,-1349.4,0.00013698,2]
[405766824,1771288239323,-1349.4,0.00013698,2]
[405766825,1771288239333,-1349.4,0.00013698,2]
[405766827,1771288239342,-1349.4,0.00013698,2]
[405766828,1771288239353,-1349.4,0.00013698,2]
[405766829,1771288239362,-1349.4,0.00013698,2]
[405766830,1771288239372,-1349.4,0.00013698,2]
[405766831,1771288239382,-1349.4,0.00013698,2]
[405766832,1771288239392,-1349.4,0.00013698,2]
[405766833,1771288239401,-1349.4,0.00013698,2]
[405766834,1771288239411,-1349.4,0.00013698,2]
[405766835,1771288239420,-1349.4,0.00013698,2]
[405766836,1771288239430,-1349.4,0.00013698,2]
[405766837,1771288239439,-1349.4,0.00013698,2]
[405766838,1771288239449,-1349.4,0.00013698,2]
[405766839,1771288239458,-349.62214462,0.00013698,2]
[405766840,1771288239468,-183.2,0.00013699,2]
[405766841,1771288239478,-3000.0,0.00013712,2]
[405766842,1771288239487,-1600.0,0.00013737,2]
[405766843,1771288239497,-2670.92523884,0.00013785,2]
[405766844,1771288239506,-840.14056473,0.0001426,2]
[405766845,1771288239516,-869.05333228,0.00014299,2]
[405766846,1771288239526,-266.15807727,0.000143,2]
[405766847,1771288239536,-508.93031567,0.0001435,2]
[405766848,1771288239545,-7657.80137256,0.0001439,2]
[405766849,1771288239555,-151.0,0.00014634,2]
[405766850,1771288239564,-151.0,0.00014634,2]
[405766852,1771288239573,-151.0,0.00014634,2]
[405766853,1771288239583,-4609.0,0.0001464,2]
[405766854,1771288239593,-1119.0,0.00014711,2]
[405766855,1771288239602,-2066.72,0.00014803,2]
[405766856,1771288239612,-2670.92523884,0.00014813,2]
[405766857,1771288239621,-250.0,0.00015,2]
[405766858,1771288239631,-2055.27643085,0.00015,2]
[405766859,1771288239640,-8001.36137513,0.00015,2]
[405766860,1771288239649,-418.79114675,0.00015,2]
[405766861,1771288239658,-175.86077414,0.00015,5]
[405766862,1771288239667,-1032.0,0.0001502,2]
[405766863,1771288239677,-166.66,0.00015247,2]
[405766864,1771288239687,-1600.0,0.00015263,2]
[405766865,1771288239696,-1517.64,0.000153,2]
[405766866,1771288239705,-361.352515,0.00015362,7]
[405766867,1771288239714,-1117.401658,0.00015387,7]
[405766868,1771288239723,-509.55358079,0.000154,2]
[405766869,1771288239732,-1596.288083,0.00015527,7]
[405766870,1771288239741,-508.93031567,0.00015533,2]
[405766871,1771288239751,-483.2761196,0.00015682,2]
[405766872,1771288239760,-166.66,0.0001575,2]
[405766873,1771288239769,-150.0,0.00015793,2]
[405766874,1771288239778,-500.0,0.00015793,2]
[405766875,1771288239787,-500.0,0.00015793,2]
[405766876,1771288239797,-500.0,0.00015793,2]
[405766877,1771288239806,-500.0,0.00015793,2]
[405766878,1771288239816,-500.0,0.00015793,2]
[405766879,1771288239825,-500.0,0.00015793,2]
[405766880,1771288239835,-500.0,0.00015793,2]
[405766881,1771288239844,-500.0,0.00015793,2]
[405766882,1771288239853,-575.0,0.00015793,2]
[405766883,1771288239863,-150.0,0.00015793,2]
[405766884,1771288239871,-500.0,0.00015793,2]
[405766885,1771288239881,-500.0,0.00015793,2]
[405766886,1771288239890,-500.0,0.00015793,2]
[405766887,1771288239900,-150.0,0.00015793,2]
[405766888,1771288239909,-500.0,0.00015793,2]
[405766889,1771288239919,-500.0,0.00015793,2]
[405766890,1771288239928,-500.0,0.00015793,2]
[405766891,1771288239938,-500.0,0.00015793,2]
[405766892,1771288239947,-500.0,0.00015793,2]
[405766893,1771288239956,-150.70133408,0.00015793,2]
[405766894,1771288239965,-150.0,0.00015793,2]
[405766895,1771288239975,-213.96319422,0.00015793,2]
[405766896,1771288239984,-2245.46908565,0.00015807,2]
[405766897,1771288239994,-4887.97,0.00015821,2]
[405766898,1771288240003,-2670.92523884,0.00015842,2]
[405766899,1771288240022,-150.0,0.00015848,2]
[405766901,1771288240031,-500.0,0.00015848,2]
[405766902,1771288240042,-500.0,0.00015848,2]
[405766903,1771288240052,-500.0,0.00015848,2]
[405766904,1771288240063,-502.30791208,0.00015848,2]
[405766905,1771288240073,-500.0,0.00015848,2]
[405766906,1771288240084,-500.0,0.00015848,2]
[405766907,1771288240094,-500.0,0.00015848,2]
[405766908,1771288240104,-500.0,0.00015848,2]
[405766909,1771288240114,-575.0,0.00015848,2]
[405766910,1771288240124,-150.0,0.00015848,2]
[405766911,1771288240134,-500.0,0.00015848,2]
[405766912,1771288240145,-500.0,0.00015848,2]
[405766913,1771288240155,-500.0,0.00015848,2]
[405766914,1771288240165,-500.0,0.00015848,2]
[405766915,1771288240175,-500.0,0.00015848,2]